Workbook

Sheet Eingabe Daten
B2: Dateneingabe
B4: Name | C4: Datum | D4: Stichprobe | E4: Y1 | F4: Y2 | G4: Y3 | H4: Y4 | I4: Y5
D5: 1 | E5: 74.03 | F5: 74.002
D6: 2 | E6: 73.995 | F6: 73.992
D7: 3 | E7: 73.988 | F7: 74.024
D8: 4 | E8: 74.002 | F8: 73.996
D9: 5 | E9: 73.992 | F9: 74.007
D10: 6 | E10: 74.009 | F10: 73.994
D11: 7 | E11: 73.995 | F11: 74.006
D12: 8 | E12: 73.985 | F12: 74.003
D13: 9 | E13: 74.008 | F13: 73.995
D14: 10 | E14: 73.998 | F14: 74
D15: 11 | E15: 73.994 | F15: 73.998
D16: 12 | E16: 74.004 | F16: 74
D17: 13 | E17: 73.983 | F17: 74.002
D18: 14 | E18: 74.006 | F18: 73.967
D19: 15 | E19: 74.012 | F19: 74.014
D20: 16 | E20: 74 | F20: 73.984
D21: 17 | E21: 73.994 | F21: 74.012
D22: 18 | E22: 74.006 | F22: 74.01
D23: 19 | E23: 73.984 | F23: 74.002
D24: 20 | E24: 74 | F24: 74.01
D25: 21 | E25: 73.982 | F25: 74.001
D26: 22 | E26: 74.004 | F26: 73.999
D27: 23 | E27: 74.01 | F27: 73.989
D28: 24 | E28: 74.015 | F28: 74.008
D29: 25 | E29: 73.982 | F29: 73.984
D30: 26 | E30: 74.03 | F30: 74.002
D31: 27 | E31: 73.995 | F31: 73.992
D32: 28 | E32: 73.988 | F32: 74.024
D33: 29 | E33: 74.002 | F33: 73.996
D34: 30 | E34: 73.992 | F34: 74.007
D35: 31 | E35: 74.009 | F35: 73.994
D36: 32 | E36: 73.995 | F36: 74.006
D37: 33 | E37: 73.985 | F37: 74.003
D38: 34 | E38: 74.008 | F38: 73.995
D39: 35 | E39: 73.998 | F39: 74
D40: 36 | E40: 73.994 | F40: 73.998
D41: 37
D42: 38
D43: 39
D44: 40
D45: 41
D46: 42
D47: 43
D48: 44
D49: 45
D50: 46
D51: 47
D52: 48
D53: 49
D54: 50
B56: Bis zu 50 Stichproben á 5 Werte
B57: Bei jeder Stichprobe muss die gleiche Anzahl an Messerten aufgenommen werden

Sheet Auswertung und Diagramm
B2: ="X quer / R Regelkarte" -> X quer / R Regelkarte
Q4: Werte können geändert werden
Q5: Werte werden berechnet (Blatt Berechnung)
Q7: Artikel: | R7: Halter
Q8: A-Nummer | R8: C2G234824ß
Q9: Zeichnung: | R9: UZT1340124357
Q10: Prüfer: | R10: Maier
Q11: Messmittel: | R11: Messschieber 47.22452
Q12: Datum: | R12: 2014-12-10
Q13: Merkmal: | R13: Länge
Q14: Maßeinheit: | R14: mm
Q15: Sollwert msoll = | S15: 74
Q16: Unterer Grenzwert UGW = | S16: 73.95
Q17: Oberer Grenzwert OGW = | S17: 74.05
Q18: Anzahl Klassen Histogramm = | S18: 20
Q19: Cpk (Ppk) > | R19: 1.33 | S19: Prozess nicht fähig
Q20: Cpk (Ppk) | R20: zwischen | S20: Prozess bedingt fähig
Q21: Cpk (Ppk) < | R21: 1.66 | S21: Prozess fähig
Q23: Umfang der Stichprobe | S23: =Anzahl -> 72
Q24: Anzahl Stichproben | S24: =AnzahlderStichproben -> 36
Q25: Teile pro Probenentnahme | S25: =Teile_pro_Probenentnahme -> 2
Q26: Mittelwert m | S26: =Mittelwert -> 73.99986111
Q27: Standardabweich. s (s ges.) | S27: =Standardabweichung -> 0.01120777592
Q29: X quer Regelkarte
Q30: UEG X quer | S30: =UEG_X_quer -> 73.97448111
Q31: OEG X Quer | S31: =OEG_X_quer -> 74.02524111
Q33: R Regelkarte
Q34: OEG Range quer | S34: =OEG_R -> 0.044145
Q35: Range quer quer | S35: =Rquer -> 0.0135
Q37: Fähigkeits- kennwerte (angelehnt an VDA Band 4 und DGQ) | R37: Cpu (Ppu) | S37: =CPU -> 1.482932073
M38: Median z | O38: =Median -> 74 | R38: Cpo (Ppo) | S38: =CPO -> 1.491193533
M39: Spannweite R | O39: =Spannweite -> 0.063 | R39: Cp (Pp) | S39: =CP -> 1.487062803
M40: Minimum | O40: =Minimum -> 73.967 | R40: Cpk (Ppk) | S40: =CPK -> 1.482932073
B41: ="www.sixsigmablackbelt.de" -> www.sixsigmablackbelt.de | M41: Maximum | O41: =Maximum -> 74.03 | Q41: ="Bewertung Cpk (Ppk) =>" -> Bewertung Cpk (Ppk) => | S41: =IF(S40<R19,S19,IF(S40>R21,S21,S20)) -> Prozess bedingt fähig

Sheet Berechnung
A2: ="X quer R Regelkarte" -> X quer R Regelkarte
A3: Rohdaten | M3: Xquer Karte | Q3: Range Karte
B4: Y1 | C4: Y2 | D4: Y3 | E4: Y4 | F4: Y5 | H4: Mittelwert | I4: Standardabweichung | J4: Range | L4: Zähler | M4: Mittelwert | N4: X quer | O4: OEG X quer | P4: UEG x quer | Q4: Spannweite quer | R4: Range | S4: OEG R
A5: 1 | B5: =IF('Eingabe Daten'!E5="","",'Eingabe Daten'!E5) -> 74.03 | C5: =IF('Eingabe Daten'!F5="","",'Eingabe Daten'!F5) -> 74.002 | D5: =IF('Eingabe Daten'!G5="","",'Eingabe Daten'!G5) ->  | E5: =IF('Eingabe Daten'!H5="","",'Eingabe Daten'!H5) ->  | F5: =IF('Eingabe Daten'!I5="","",'Eingabe Daten'!I5) ->  | H5: =IF(B5<>"",AVERAGE(B5:F5),"") -> 74.016 | I5: =IF(B5<>"",_xlfn.STDEV.P(B5:F5),"") -> 0.014 | J5: =IF(B5<>"",MAX(B5:F5)-MIN(B5:F5),"") -> 0.028 | L5: 1 | M5: =IF(H5="",NA(),xquerquer) -> 73.99986111 | N5: =IF(H5="",NA(),H5) -> 74.016 | O5: =IF(H5="",NA(),xquerquer+(Azwei*Rquer)) -> 74.02524111 | P5: =IF(H5="",NA(),xquerquer-(Azwei*Rquer)) -> 73.97448111 | Q5: =IF(H5="",NA(),Rquer) -> 0.0135 | R5: =IF(H5="",NA(),J5) -> 0.028 | S5: =IF(H5="",NA(),Dvier*Rquer) -> 0.044145 | V5: Datum: | W5: =Datum -> 2014-12-10
A6: 2 | B6: =IF('Eingabe Daten'!E6="","",'Eingabe Daten'!E6) -> 73.995 | C6: =IF('Eingabe Daten'!F6="","",'Eingabe Daten'!F6) -> 73.992 | D6: =IF('Eingabe Daten'!G6="","",'Eingabe Daten'!G6) ->  | E6: =IF('Eingabe Daten'!H6="","",'Eingabe Daten'!H6) ->  | F6: =IF('Eingabe Daten'!I6="","",'Eingabe Daten'!I6) ->  | H6: 73.9935 | I6: 0.0015 | J6: 0.003 | L6: =IF(H6="",L5,A6) -> 2 | M6: 73.99986111 | N6: 73.9935 | O6: 74.02524111 | P6: 73.97448111 | Q6: 0.0135 | R6: =IF(H6="",NA(),J6) -> 0.003 | S6: 0.044145 | V6: Merkmal: | W6: =Merkmal -> Länge | Y6: Homepage:
A7: 3 | B7: =IF('Eingabe Daten'!E7="","",'Eingabe Daten'!E7) -> 73.988 | C7: =IF('Eingabe Daten'!F7="","",'Eingabe Daten'!F7) -> 74.024 | D7: =IF('Eingabe Daten'!G7="","",'Eingabe Daten'!G7) ->  | E7: =IF('Eingabe Daten'!H7="","",'Eingabe Daten'!H7) ->  | F7: =IF('Eingabe Daten'!I7="","",'Eingabe Daten'!I7) ->  | H7: 74.006 | I7: 0.018 | J7: 0.036 | L7: =IF(H7="",L6,A7) -> 3 | M7: 73.99986111 | N7: 74.006 | O7: 74.02524111 | P7: 73.97448111 | Q7: 0.0135 | R7: 0.036 | S7: 0.044145 | V7: Maßeinheit: | W7: =Maßeinheit -> mm | Y7: www.sixsigmablackbelt.de
A8: 4 | B8: =IF('Eingabe Daten'!E8="","",'Eingabe Daten'!E8) -> 74.002 | C8: =IF('Eingabe Daten'!F8="","",'Eingabe Daten'!F8) -> 73.996 | D8: =IF('Eingabe Daten'!G8="","",'Eingabe Daten'!G8) ->  | E8: =IF('Eingabe Daten'!H8="","",'Eingabe Daten'!H8) ->  | F8: =IF('Eingabe Daten'!I8="","",'Eingabe Daten'!I8) ->  | H8: 73.999 | I8: 0.003 | J8: 0.006 | L8: 4 | M8: 73.99986111 | N8: 73.999 | O8: 74.02524111 | P8: 73.97448111 | Q8: 0.0135 | R8: 0.006 | S8: 0.044145 | V8: Sollwert msoll = | W8: =Sollwert -> 74
A9: 5 | B9: =IF('Eingabe Daten'!E9="","",'Eingabe Daten'!E9) -> 73.992 | C9: =IF('Eingabe Daten'!F9="","",'Eingabe Daten'!F9) -> 74.007 | D9: =IF('Eingabe Daten'!G9="","",'Eingabe Daten'!G9) ->  | E9: =IF('Eingabe Daten'!H9="","",'Eingabe Daten'!H9) ->  | F9: =IF('Eingabe Daten'!I9="","",'Eingabe Daten'!I9) ->  | H9: 73.9995 | I9: 0.0075 | J9: 0.015 | L9: 5 | M9: 73.99986111 | N9: 73.9995 | O9: 74.02524111 | P9: 73.97448111 | Q9: 0.0135 | R9: 0.015 | S9: 0.044145 | V9: Unterer Grenzwert UGW = | W9: =UGW -> 73.95 | Y9: E-Mail an roland.schnurr@sixsigmablackbelt.de
A10: 6 | B10: =IF('Eingabe Daten'!E10="","",'Eingabe Daten'!E10) -> 74.009 | C10: =IF('Eingabe Daten'!F10="","",'Eingabe Daten'!F10) -> 73.994 | D10: =IF('Eingabe Daten'!G10="","",'Eingabe Daten'!G10) ->  | E10: =IF('Eingabe Daten'!H10="","",'Eingabe Daten'!H10) ->  | F10: =IF('Eingabe Daten'!I10="","",'Eingabe Daten'!I10) ->  | H10: 74.0015 | I10: 0.0075 | J10: 0.015 | L10: 6 | M10: 73.99986111 | N10: 74.0015 | O10: 74.02524111 | P10: 73.97448111 | Q10: 0.0135 | R10: 0.015 | S10: 0.044145 | V10: Oberer Grenzwert OGW = | W10: =OGW -> 74.05
A11: 7 | B11: =IF('Eingabe Daten'!E11="","",'Eingabe Daten'!E11) -> 73.995 | C11: =IF('Eingabe Daten'!F11="","",'Eingabe Daten'!F11) -> 74.006 | D11: =IF('Eingabe Daten'!G11="","",'Eingabe Daten'!G11) ->  | E11: =IF('Eingabe Daten'!H11="","",'Eingabe Daten'!H11) ->  | F11: =IF('Eingabe Daten'!I11="","",'Eingabe Daten'!I11) ->  | H11: 74.0005 | I11: 0.0055 | J11: 0.011 | L11: 7 | M11: 73.99986111 | N11: 74.0005 | O11: 74.02524111 | P11: 73.97448111 | Q11: 0.0135 | R11: 0.011 | S11: 0.044145 | Y11: Literatur:
A12: 8 | B12: =IF('Eingabe Daten'!E12="","",'Eingabe Daten'!E12) -> 73.985 | C12: =IF('Eingabe Daten'!F12="","",'Eingabe Daten'!F12) -> 74.003 | D12: =IF('Eingabe Daten'!G12="","",'Eingabe Daten'!G12) ->  | E12: =IF('Eingabe Daten'!H12="","",'Eingabe Daten'!H12) ->  | F12: =IF('Eingabe Daten'!I12="","",'Eingabe Daten'!I12) ->  | H12: =IF(B12<>"",AVERAGE(B12:F12),"") -> 73.994 | I12: 0.009 | J12: =IF(B12<>"",MAX(B12:F12)-MIN(B12:F12),"") -> 0.018 | L12: 8 | M12: 73.99986111 | N12: 73.994 | O12: 74.02524111 | P12: 73.97448111 | Q12: 0.0135 | R12: 0.018 | S12: 0.044145 | V12: Umfang der Stichprobe | W12: =COUNT(xi) -> 72 | Y12: Statistik von Kopf bis Fuss
A13: 9 | B13: =IF('Eingabe Daten'!E13="","",'Eingabe Daten'!E13) -> 74.008 | C13: =IF('Eingabe Daten'!F13="","",'Eingabe Daten'!F13) -> 73.995 | D13: =IF('Eingabe Daten'!G13="","",'Eingabe Daten'!G13) ->  | E13: =IF('Eingabe Daten'!H13="","",'Eingabe Daten'!H13) ->  | F13: =IF('Eingabe Daten'!I13="","",'Eingabe Daten'!I13) ->  | H13: =IF(B13<>"",AVERAGE(B13:F13),"") -> 74.0015 | I13: 0.0065 | J13: =IF(B13<>"",MAX(B13:F13)-MIN(B13:F13),"") -> 0.013 | L13: 9 | M13: 73.99986111 | N13: 74.0015 | O13: 74.02524111 | P13: 73.97448111 | Q13: 0.0135 | R13: 0.013 | S13: 0.044145 | V13: Mittelwert m | W13: =AVERAGE(xi) -> 73.99986111 | Y13: SPC - Statistische Prozesskontrolle
A14: 10 | B14: =IF('Eingabe Daten'!E14="","",'Eingabe Daten'!E14) -> 73.998 | C14: =IF('Eingabe Daten'!F14="","",'Eingabe Daten'!F14) -> 74 | D14: =IF('Eingabe Daten'!G14="","",'Eingabe Daten'!G14) ->  | E14: =IF('Eingabe Daten'!H14="","",'Eingabe Daten'!H14) ->  | F14: =IF('Eingabe Daten'!I14="","",'Eingabe Daten'!I14) ->  | H14: 73.999 | I14: 0.001 | J14: 0.002 | L14: 10 | M14: 73.99986111 | N14: 73.999 | O14: 74.02524111 | P14: 73.97448111 | Q14: 0.0135 | R14: 0.002 | S14: 0.044145 | V14: Standardabweichung s gesamt | W14: =STDEV(xi) -> 0.01120777592 | Y14: Qualitätsmanagement für Ingenieure
A15: 11 | B15: =IF('Eingabe Daten'!E15="","",'Eingabe Daten'!E15) -> 73.994 | C15: =IF('Eingabe Daten'!F15="","",'Eingabe Daten'!F15) -> 73.998 | D15: =IF('Eingabe Daten'!G15="","",'Eingabe Daten'!G15) ->  | E15: =IF('Eingabe Daten'!H15="","",'Eingabe Daten'!H15) ->  | F15: =IF('Eingabe Daten'!I15="","",'Eingabe Daten'!I15) ->  | H15: 73.996 | I15: 0.002 | J15: 0.004 | L15: 11 | M15: 73.99986111 | N15: 73.996 | O15: 74.02524111 | P15: 73.97448111 | Q15: 0.0135 | R15: 0.004 | S15: 0.044145 | Y15: SPC - Statistische Prozesskontrolle: Eine praktische Einführung in die statistische Prozesskontrolle
A16: 12 | B16: =IF('Eingabe Daten'!E16="","",'Eingabe Daten'!E16) -> 74.004 | C16: =IF('Eingabe Daten'!F16="","",'Eingabe Daten'!F16) -> 74 | D16: =IF('Eingabe Daten'!G16="","",'Eingabe Daten'!G16) ->  | E16: =IF('Eingabe Daten'!H16="","",'Eingabe Daten'!H16) ->  | F16: =IF('Eingabe Daten'!I16="","",'Eingabe Daten'!I16) ->  | H16: 74.002 | I16: 0.002 | J16: 0.004 | L16: 12 | M16: 73.99986111 | N16: 74.002 | O16: 74.02524111 | P16: 73.97448111 | Q16: 0.0135 | R16: 0.004 | S16: 0.044145 | W16: Fähigkeitskennwerte
A17: 13 | B17: =IF('Eingabe Daten'!E17="","",'Eingabe Daten'!E17) -> 73.983 | C17: =IF('Eingabe Daten'!F17="","",'Eingabe Daten'!F17) -> 74.002 | D17: =IF('Eingabe Daten'!G17="","",'Eingabe Daten'!G17) ->  | E17: =IF('Eingabe Daten'!H17="","",'Eingabe Daten'!H17) ->  | F17: =IF('Eingabe Daten'!I17="","",'Eingabe Daten'!I17) ->  | H17: 73.9925 | I17: 0.0095 | J17: 0.019 | L17: 13 | M17: 73.99986111 | N17: 73.9925 | O17: 74.02524111 | P17: 73.97448111 | Q17: 0.0135 | R17: 0.019 | S17: 0.044145 | V17: Cpu | W17: =(W13-W9)/(3*W14) -> 1.482932073
A18: 14 | B18: =IF('Eingabe Daten'!E18="","",'Eingabe Daten'!E18) -> 74.006 | C18: =IF('Eingabe Daten'!F18="","",'Eingabe Daten'!F18) -> 73.967 | D18: =IF('Eingabe Daten'!G18="","",'Eingabe Daten'!G18) ->  | E18: =IF('Eingabe Daten'!H18="","",'Eingabe Daten'!H18) ->  | F18: =IF('Eingabe Daten'!I18="","",'Eingabe Daten'!I18) ->  | H18: 73.9865 | I18: 0.0195 | J18: 0.039 | L18: 14 | M18: 73.99986111 | N18: 73.9865 | O18: 74.02524111 | P18: 73.97448111 | Q18: 0.0135 | R18: 0.039 | S18: 0.044145 | V18: Cpo | W18: =(W10-W13)/(3*W14) -> 1.491193533 | Y18: Konstanten
A19: 15 | B19: =IF('Eingabe Daten'!E19="","",'Eingabe Daten'!E19) -> 74.012 | C19: =IF('Eingabe Daten'!F19="","",'Eingabe Daten'!F19) -> 74.014 | D19: =IF('Eingabe Daten'!G19="","",'Eingabe Daten'!G19) ->  | E19: =IF('Eingabe Daten'!H19="","",'Eingabe Daten'!H19) ->  | F19: =IF('Eingabe Daten'!I19="","",'Eingabe Daten'!I19) ->  | H19: 74.013 | I19: 0.001 | J19: 0.002 | L19: 15 | M19: 73.99986111 | N19: 74.013 | O19: 74.02524111 | P19: 73.97448111 | Q19: 0.0135 | R19: 0.002 | S19: 0.044145 | V19: Cp | W19: =(W10-W9)/(6*W14) -> 1.487062803 | Y19: n | Z19: A2 | AA19: D4 | AB19: D3 | AC19: d2
A20: 16 | B20: =IF('Eingabe Daten'!E20="","",'Eingabe Daten'!E20) -> 74 | C20: =IF('Eingabe Daten'!F20="","",'Eingabe Daten'!F20) -> 73.984 | D20: =IF('Eingabe Daten'!G20="","",'Eingabe Daten'!G20) ->  | E20: =IF('Eingabe Daten'!H20="","",'Eingabe Daten'!H20) ->  | F20: =IF('Eingabe Daten'!I20="","",'Eingabe Daten'!I20) ->  | H20: 73.992 | I20: 0.008 | J20: 0.016 | L20: 16 | M20: 73.99986111 | N20: 73.992 | O20: 74.02524111 | P20: 73.97448111 | Q20: 0.0135 | R20: 0.016 | S20: 0.044145 | V20: Cpk | W20: =MIN(W18,W17) -> 1.482932073 | Y20: 1 | Z20: 2.66 | AA20: 3.27 | AB20: 0 | AC20: 1.128
A21: 17 | B21: =IF('Eingabe Daten'!E21="","",'Eingabe Daten'!E21) -> 73.994 | C21: =IF('Eingabe Daten'!F21="","",'Eingabe Daten'!F21) -> 74.012 | D21: =IF('Eingabe Daten'!G21="","",'Eingabe Daten'!G21) ->  | E21: =IF('Eingabe Daten'!H21="","",'Eingabe Daten'!H21) ->  | F21: =IF('Eingabe Daten'!I21="","",'Eingabe Daten'!I21) ->  | H21: 74.003 | I21: 0.009 | J21: 0.018 | L21: 17 | M21: 73.99986111 | N21: 74.003 | O21: 74.02524111 | P21: 73.97448111 | Q21: 0.0135 | R21: 0.018 | S21: 0.044145 | Y21: 2 | Z21: 1.88 | AA21: 3.27 | AB21: 0 | AC21: 1.128
A22: 18 | B22: =IF('Eingabe Daten'!E22="","",'Eingabe Daten'!E22) -> 74.006 | C22: =IF('Eingabe Daten'!F22="","",'Eingabe Daten'!F22) -> 74.01 | D22: =IF('Eingabe Daten'!G22="","",'Eingabe Daten'!G22) ->  | E22: =IF('Eingabe Daten'!H22="","",'Eingabe Daten'!H22) ->  | F22: =IF('Eingabe Daten'!I22="","",'Eingabe Daten'!I22) ->  | H22: 74.008 | I22: 0.002 | J22: 0.004 | L22: 18 | M22: 73.99986111 | N22: 74.008 | O22: 74.02524111 | P22: 73.97448111 | Q22: 0.0135 | R22: 0.004 | S22: 0.044145 | V22: Median z | W22: =MEDIAN(xi) -> 74 | Y22: 3 | Z22: 1.023 | AA22: 2.575 | AB22: 0 | AC22: 1.693
A23: 19 | B23: =IF('Eingabe Daten'!E23="","",'Eingabe Daten'!E23) -> 73.984 | C23: =IF('Eingabe Daten'!F23="","",'Eingabe Daten'!F23) -> 74.002 | D23: =IF('Eingabe Daten'!G23="","",'Eingabe Daten'!G23) ->  | E23: =IF('Eingabe Daten'!H23="","",'Eingabe Daten'!H23) ->  | F23: =IF('Eingabe Daten'!I23="","",'Eingabe Daten'!I23) ->  | H23: 73.993 | I23: 0.009 | J23: 0.018 | L23: 19 | M23: 73.99986111 | N23: 73.993 | O23: 74.02524111 | P23: 73.97448111 | Q23: 0.0135 | R23: 0.018 | S23: 0.044145 | V23: Spannweite R | W23: =Maximum-Minimum -> 0.063 | Y23: 4 | Z23: 0.729 | AA23: 2.282 | AB23: 0 | AC23: 2.059
A24: 20 | B24: =IF('Eingabe Daten'!E24="","",'Eingabe Daten'!E24) -> 74 | C24: =IF('Eingabe Daten'!F24="","",'Eingabe Daten'!F24) -> 74.01 | D24: =IF('Eingabe Daten'!G24="","",'Eingabe Daten'!G24) ->  | E24: =IF('Eingabe Daten'!H24="","",'Eingabe Daten'!H24) ->  | F24: =IF('Eingabe Daten'!I24="","",'Eingabe Daten'!I24) ->  | H24: 74.005 | I24: 0.005 | J24: 0.01 | L24: 20 | M24: 73.99986111 | N24: 74.005 | O24: 74.02524111 | P24: 73.97448111 | Q24: 0.0135 | R24: 0.01 | S24: 0.044145 | V24: Minimum | W24: =MIN(xi) -> 73.967 | Y24: 5 | Z24: 0.577 | AA24: 2.115 | AB24: 0 | AC24: 2.326
A25: 21 | B25: =IF('Eingabe Daten'!E25="","",'Eingabe Daten'!E25) -> 73.982 | C25: =IF('Eingabe Daten'!F25="","",'Eingabe Daten'!F25) -> 74.001 | D25: =IF('Eingabe Daten'!G25="","",'Eingabe Daten'!G25) ->  | E25: =IF('Eingabe Daten'!H25="","",'Eingabe Daten'!H25) ->  | F25: =IF('Eingabe Daten'!I25="","",'Eingabe Daten'!I25) ->  | H25: 73.9915 | I25: 0.0095 | J25: 0.019 | L25: 21 | M25: 73.99986111 | N25: 73.9915 | O25: 74.02524111 | P25: 73.97448111 | Q25: 0.0135 | R25: 0.019 | S25: 0.044145 | V25: Maximum | W25: =MAX(xi) -> 74.03
A26: 22 | B26: =IF('Eingabe Daten'!E26="","",'Eingabe Daten'!E26) -> 74.004 | C26: =IF('Eingabe Daten'!F26="","",'Eingabe Daten'!F26) -> 73.999 | D26: =IF('Eingabe Daten'!G26="","",'Eingabe Daten'!G26) ->  | E26: =IF('Eingabe Daten'!H26="","",'Eingabe Daten'!H26) ->  | F26: =IF('Eingabe Daten'!I26="","",'Eingabe Daten'!I26) ->  | H26: 74.0015 | I26: 0.0025 | J26: 0.005 | L26: 22 | M26: 73.99986111 | N26: 74.0015 | O26: 74.02524111 | P26: 73.97448111 | Q26: 0.0135 | R26: 0.005 | S26: 0.044145
A27: 23 | B27: =IF('Eingabe Daten'!E27="","",'Eingabe Daten'!E27) -> 74.01 | C27: =IF('Eingabe Daten'!F27="","",'Eingabe Daten'!F27) -> 73.989 | D27: =IF('Eingabe Daten'!G27="","",'Eingabe Daten'!G27) ->  | E27: =IF('Eingabe Daten'!H27="","",'Eingabe Daten'!H27) ->  | F27: =IF('Eingabe Daten'!I27="","",'Eingabe Daten'!I27) ->  | H27: 73.9995 | I27: 0.0105 | J27: 0.021 | L27: 23 | M27: 73.99986111 | N27: 73.9995 | O27: 74.02524111 | P27: 73.97448111 | Q27: 0.0135 | R27: 0.021 | S27: 0.044145 | V27: Mittelwert
A28: 24 | B28: =IF('Eingabe Daten'!E28="","",'Eingabe Daten'!E28) -> 74.015 | C28: =IF('Eingabe Daten'!F28="","",'Eingabe Daten'!F28) -> 74.008 | D28: =IF('Eingabe Daten'!G28="","",'Eingabe Daten'!G28) ->  | E28: =IF('Eingabe Daten'!H28="","",'Eingabe Daten'!H28) ->  | F28: =IF('Eingabe Daten'!I28="","",'Eingabe Daten'!I28) ->  | H28: 74.0115 | I28: 0.0035 | J28: 0.007 | L28: 24 | M28: 73.99986111 | N28: 74.0115 | O28: 74.02524111 | P28: 73.97448111 | Q28: 0.0135 | R28: 0.007 | S28: 0.044145 | V28: Range | W28: =AVERAGE(Range) -> 0.0135
A29: 25 | B29: =IF('Eingabe Daten'!E29="","",'Eingabe Daten'!E29) -> 73.982 | C29: =IF('Eingabe Daten'!F29="","",'Eingabe Daten'!F29) -> 73.984 | D29: =IF('Eingabe Daten'!G29="","",'Eingabe Daten'!G29) ->  | E29: =IF('Eingabe Daten'!H29="","",'Eingabe Daten'!H29) ->  | F29: =IF('Eingabe Daten'!I29="","",'Eingabe Daten'!I29) ->  | H29: 73.983 | I29: 0.001 | J29: 0.002 | L29: 25 | M29: 73.99986111 | N29: 73.983 | O29: 74.02524111 | P29: 73.97448111 | Q29: 0.0135 | R29: 0.002 | S29: 0.044145 | V29: Standardabweichung | W29: =AVERAGE(StandardabweichungeinzelnesLos) -> 0.00675
A30: 26 | B30: =IF('Eingabe Daten'!E30="","",'Eingabe Daten'!E30) -> 74.03 | C30: =IF('Eingabe Daten'!F30="","",'Eingabe Daten'!F30) -> 74.002 | D30: =IF('Eingabe Daten'!G30="","",'Eingabe Daten'!G30) ->  | E30: =IF('Eingabe Daten'!H30="","",'Eingabe Daten'!H30) ->  | F30: =IF('Eingabe Daten'!I30="","",'Eingabe Daten'!I30) ->  | H30: 74.016 | I30: 0.014 | J30: 0.028 | L30: 26 | M30: 73.99986111 | N30: 74.016 | O30: 74.02524111 | P30: 73.97448111 | Q30: 0.0135 | R30: 0.028 | S30: 0.044145 | V30: Mittelwert | W30: =AVERAGE(H5:H54) -> 73.99986111
A31: 27 | B31: =IF('Eingabe Daten'!E31="","",'Eingabe Daten'!E31) -> 73.995 | C31: =IF('Eingabe Daten'!F31="","",'Eingabe Daten'!F31) -> 73.992 | D31: =IF('Eingabe Daten'!G31="","",'Eingabe Daten'!G31) ->  | E31: =IF('Eingabe Daten'!H31="","",'Eingabe Daten'!H31) ->  | F31: =IF('Eingabe Daten'!I31="","",'Eingabe Daten'!I31) ->  | H31: 73.9935 | I31: 0.0015 | J31: 0.003 | L31: 27 | M31: 73.99986111 | N31: 73.9935 | O31: 74.02524111 | P31: 73.97448111 | Q31: 0.0135 | R31: 0.003 | S31: 0.044145
A32: 28 | B32: =IF('Eingabe Daten'!E32="","",'Eingabe Daten'!E32) -> 73.988 | C32: =IF('Eingabe Daten'!F32="","",'Eingabe Daten'!F32) -> 74.024 | D32: =IF('Eingabe Daten'!G32="","",'Eingabe Daten'!G32) ->  | E32: =IF('Eingabe Daten'!H32="","",'Eingabe Daten'!H32) ->  | F32: =IF('Eingabe Daten'!I32="","",'Eingabe Daten'!I32) ->  | H32: 74.006 | I32: 0.018 | J32: 0.036 | L32: 28 | M32: 73.99986111 | N32: 74.006 | O32: 74.02524111 | P32: 73.97448111 | Q32: 0.0135 | R32: 0.036 | S32: 0.044145
A33: 29 | B33: =IF('Eingabe Daten'!E33="","",'Eingabe Daten'!E33) -> 74.002 | C33: =IF('Eingabe Daten'!F33="","",'Eingabe Daten'!F33) -> 73.996 | D33: =IF('Eingabe Daten'!G33="","",'Eingabe Daten'!G33) ->  | E33: =IF('Eingabe Daten'!H33="","",'Eingabe Daten'!H33) ->  | F33: =IF('Eingabe Daten'!I33="","",'Eingabe Daten'!I33) ->  | H33: 73.999 | I33: 0.003 | J33: 0.006 | L33: 29 | M33: 73.99986111 | N33: 73.999 | O33: 74.02524111 | P33: 73.97448111 | Q33: 0.0135 | R33: 0.006 | S33: 0.044145
A34: 30 | B34: =IF('Eingabe Daten'!E34="","",'Eingabe Daten'!E34) -> 73.992 | C34: =IF('Eingabe Daten'!F34="","",'Eingabe Daten'!F34) -> 74.007 | D34: =IF('Eingabe Daten'!G34="","",'Eingabe Daten'!G34) ->  | E34: =IF('Eingabe Daten'!H34="","",'Eingabe Daten'!H34) ->  | F34: =IF('Eingabe Daten'!I34="","",'Eingabe Daten'!I34) ->  | H34: 73.9995 | I34: 0.0075 | J34: 0.015 | L34: 30 | M34: 73.99986111 | N34: 73.9995 | O34: 74.02524111 | P34: 73.97448111 | Q34: 0.0135 | R34: 0.015 | S34: 0.044145
A35: 31 | B35: =IF('Eingabe Daten'!E35="","",'Eingabe Daten'!E35) -> 74.009 | C35: =IF('Eingabe Daten'!F35="","",'Eingabe Daten'!F35) -> 73.994 | D35: =IF('Eingabe Daten'!G35="","",'Eingabe Daten'!G35) ->  | E35: =IF('Eingabe Daten'!H35="","",'Eingabe Daten'!H35) ->  | F35: =IF('Eingabe Daten'!I35="","",'Eingabe Daten'!I35) ->  | H35: 74.0015 | I35: 0.0075 | J35: 0.015 | L35: 31 | M35: 73.99986111 | N35: 74.0015 | O35: 74.02524111 | P35: 73.97448111 | Q35: 0.0135 | R35: 0.015 | S35: 0.044145
A36: 32 | B36: =IF('Eingabe Daten'!E36="","",'Eingabe Daten'!E36) -> 73.995 | C36: =IF('Eingabe Daten'!F36="","",'Eingabe Daten'!F36) -> 74.006 | D36: =IF('Eingabe Daten'!G36="","",'Eingabe Daten'!G36) ->  | E36: =IF('Eingabe Daten'!H36="","",'Eingabe Daten'!H36) ->  | F36: =IF('Eingabe Daten'!I36="","",'Eingabe Daten'!I36) ->  | H36: 74.0005 | I36: 0.0055 | J36: 0.011 | L36: 32 | M36: 73.99986111 | N36: 74.0005 | O36: 74.02524111 | P36: 73.97448111 | Q36: 0.0135 | R36: 0.011 | S36: 0.044145
A37: 33 | B37: =IF('Eingabe Daten'!E37="","",'Eingabe Daten'!E37) -> 73.985 | C37: =IF('Eingabe Daten'!F37="","",'Eingabe Daten'!F37) -> 74.003 | D37: =IF('Eingabe Daten'!G37="","",'Eingabe Daten'!G37) ->  | E37: =IF('Eingabe Daten'!H37="","",'Eingabe Daten'!H37) ->  | F37: =IF('Eingabe Daten'!I37="","",'Eingabe Daten'!I37) ->  | H37: 73.994 | I37: 0.009 | J37: 0.018 | L37: 33 | M37: =IF(H37="",NA(),xquerquer) -> 73.99986111 | N37: =IF(H37="",NA(),H37) -> 73.994 | O37: =IF(H37="",NA(),xquerquer+(Azwei*Rquer)) -> 74.02524111 | P37: =IF(H37="",NA(),xquerquer-(Azwei*Rquer)) -> 73.97448111 | Q37: =IF(H37="",NA(),Rquer) -> 0.0135 | R37: 0.018 | S37: =IF(H37="",NA(),Dvier*Rquer) -> 0.044145
A38: 34 | B38: =IF('Eingabe Daten'!E38="","",'Eingabe Daten'!E38) -> 74.008 | C38: =IF('Eingabe Daten'!F38="","",'Eingabe Daten'!F38) -> 73.995 | D38: =IF('Eingabe Daten'!G38="","",'Eingabe Daten'!G38) ->  | E38: =IF('Eingabe Daten'!H38="","",'Eingabe Daten'!H38) ->  | F38: =IF('Eingabe Daten'!I38="","",'Eingabe Daten'!I38) ->  | H38: 74.0015 | I38: 0.0065 | J38: 0.013 | L38: 34 | M38: 73.99986111 | N38: 74.0015 | O38: 74.02524111 | P38: 73.97448111 | Q38: 0.0135 | R38: 0.013 | S38: 0.044145
A39: 35 | B39: =IF('Eingabe Daten'!E39="","",'Eingabe Daten'!E39) -> 73.998 | C39: =IF('Eingabe Daten'!F39="","",'Eingabe Daten'!F39) -> 74 | D39: =IF('Eingabe Daten'!G39="","",'Eingabe Daten'!G39) ->  | E39: =IF('Eingabe Daten'!H39="","",'Eingabe Daten'!H39) ->  | F39: =IF('Eingabe Daten'!I39="","",'Eingabe Daten'!I39) ->  | H39: 73.999 | I39: 0.001 | J39: 0.002 | L39: 35 | M39: 73.99986111 | N39: 73.999 | O39: 74.02524111 | P39: 73.97448111 | Q39: 0.0135 | R39: 0.002 | S39: 0.044145 | V39: Umfang der Stichprobe | W39: =COUNT(Berechnung!B5:F5) -> 2
A40: 36 | B40: =IF('Eingabe Daten'!E40="","",'Eingabe Daten'!E40) -> 73.994 | C40: =IF('Eingabe Daten'!F40="","",'Eingabe Daten'!F40) -> 73.998 | D40: =IF('Eingabe Daten'!G40="","",'Eingabe Daten'!G40) ->  | E40: =IF('Eingabe Daten'!H40="","",'Eingabe Daten'!H40) ->  | F40: =IF('Eingabe Daten'!I40="","",'Eingabe Daten'!I40) ->  | H40: 73.996 | I40: 0.002 | J40: 0.004 | L40: 36 | M40: 73.99986111 | N40: 73.996 | O40: 74.02524111 | P40: 73.97448111 | Q40: 0.0135 | R40: 0.004 | S40: 0.044145 | V40: Anzahl der Stichproben | W40: =COUNT(B5:B54) -> 36
A41: 37 | B41: =IF('Eingabe Daten'!E41="","",'Eingabe Daten'!E41) ->  | C41: =IF('Eingabe Daten'!F41="","",'Eingabe Daten'!F41) ->  | D41: =IF('Eingabe Daten'!G41="","",'Eingabe Daten'!G41) ->  | E41: =IF('Eingabe Daten'!H41="","",'Eingabe Daten'!H41) ->  | F41: =IF('Eingabe Daten'!I41="","",'Eingabe Daten'!I41) ->  | L41: 36 | V41: entsprechendes A2 | W41: =VLOOKUP(W39,Y20:Z24,2,FALSE) -> 1.88
A42: 38 | B42: =IF('Eingabe Daten'!E42="","",'Eingabe Daten'!E42) ->  | C42: =IF('Eingabe Daten'!F42="","",'Eingabe Daten'!F42) ->  | D42: =IF('Eingabe Daten'!G42="","",'Eingabe Daten'!G42) ->  | E42: =IF('Eingabe Daten'!H42="","",'Eingabe Daten'!H42) ->  | F42: =IF('Eingabe Daten'!I42="","",'Eingabe Daten'!I42) ->  | L42: 36 | V42: entsprechendes D4 | W42: =VLOOKUP(W39,Y20:AA24,3,FALSE) -> 3.27
A43: 39 | B43: =IF('Eingabe Daten'!E43="","",'Eingabe Daten'!E43) ->  | C43: =IF('Eingabe Daten'!F43="","",'Eingabe Daten'!F43) ->  | D43: =IF('Eingabe Daten'!G43="","",'Eingabe Daten'!G43) ->  | E43: =IF('Eingabe Daten'!H43="","",'Eingabe Daten'!H43) ->  | F43: =IF('Eingabe Daten'!I43="","",'Eingabe Daten'!I43) ->  | L43: 36
A44: 40 | B44: =IF('Eingabe Daten'!E44="","",'Eingabe Daten'!E44) ->  | C44: =IF('Eingabe Daten'!F44="","",'Eingabe Daten'!F44) ->  | D44: =IF('Eingabe Daten'!G44="","",'Eingabe Daten'!G44) ->  | E44: =IF('Eingabe Daten'!H44="","",'Eingabe Daten'!H44) ->  | F44: =IF('Eingabe Daten'!I44="","",'Eingabe Daten'!I44) ->  | L44: 36
A45: 41 | B45: =IF('Eingabe Daten'!E45="","",'Eingabe Daten'!E45) ->  | C45: =IF('Eingabe Daten'!F45="","",'Eingabe Daten'!F45) ->  | D45: =IF('Eingabe Daten'!G45="","",'Eingabe Daten'!G45) ->  | E45: =IF('Eingabe Daten'!H45="","",'Eingabe Daten'!H45) ->  | F45: =IF('Eingabe Daten'!I45="","",'Eingabe Daten'!I45) ->  | L45: 36
A46: 42 | B46: =IF('Eingabe Daten'!E46="","",'Eingabe Daten'!E46) ->  | C46: =IF('Eingabe Daten'!F46="","",'Eingabe Daten'!F46) ->  | D46: =IF('Eingabe Daten'!G46="","",'Eingabe Daten'!G46) ->  | E46: =IF('Eingabe Daten'!H46="","",'Eingabe Daten'!H46) ->  | F46: =IF('Eingabe Daten'!I46="","",'Eingabe Daten'!I46) ->  | L46: 36
A47: 43 | B47: =IF('Eingabe Daten'!E47="","",'Eingabe Daten'!E47) ->  | C47: =IF('Eingabe Daten'!F47="","",'Eingabe Daten'!F47) ->  | D47: =IF('Eingabe Daten'!G47="","",'Eingabe Daten'!G47) ->  | E47: =IF('Eingabe Daten'!H47="","",'Eingabe Daten'!H47) ->  | F47: =IF('Eingabe Daten'!I47="","",'Eingabe Daten'!I47) ->  | L47: 36
A48: 44 | B48: =IF('Eingabe Daten'!E48="","",'Eingabe Daten'!E48) ->  | C48: =IF('Eingabe Daten'!F48="","",'Eingabe Daten'!F48) ->  | D48: =IF('Eingabe Daten'!G48="","",'Eingabe Daten'!G48) ->  | E48: =IF('Eingabe Daten'!H48="","",'Eingabe Daten'!H48) ->  | F48: =IF('Eingabe Daten'!I48="","",'Eingabe Daten'!I48) ->  | L48: 36
A49: 45 | B49: =IF('Eingabe Daten'!E49="","",'Eingabe Daten'!E49) ->  | C49: =IF('Eingabe Daten'!F49="","",'Eingabe Daten'!F49) ->  | D49: =IF('Eingabe Daten'!G49="","",'Eingabe Daten'!G49) ->  | E49: =IF('Eingabe Daten'!H49="","",'Eingabe Daten'!H49) ->  | F49: =IF('Eingabe Daten'!I49="","",'Eingabe Daten'!I49) ->  | L49: 36
A50: 46 | B50: =IF('Eingabe Daten'!E50="","",'Eingabe Daten'!E50) ->  | C50: =IF('Eingabe Daten'!F50="","",'Eingabe Daten'!F50) ->  | D50: =IF('Eingabe Daten'!G50="","",'Eingabe Daten'!G50) ->  | E50: =IF('Eingabe Daten'!H50="","",'Eingabe Daten'!H50) ->  | F50: =IF('Eingabe Daten'!I50="","",'Eingabe Daten'!I50) ->  | L50: 36
A51: 47 | B51: =IF('Eingabe Daten'!E51="","",'Eingabe Daten'!E51) ->  | C51: =IF('Eingabe Daten'!F51="","",'Eingabe Daten'!F51) ->  | D51: =IF('Eingabe Daten'!G51="","",'Eingabe Daten'!G51) ->  | E51: =IF('Eingabe Daten'!H51="","",'Eingabe Daten'!H51) ->  | F51: =IF('Eingabe Daten'!I51="","",'Eingabe Daten'!I51) ->  | L51: 36
A52: 48 | B52: =IF('Eingabe Daten'!E52="","",'Eingabe Daten'!E52) ->  | C52: =IF('Eingabe Daten'!F52="","",'Eingabe Daten'!F52) ->  | D52: =IF('Eingabe Daten'!G52="","",'Eingabe Daten'!G52) ->  | E52: =IF('Eingabe Daten'!H52="","",'Eingabe Daten'!H52) ->  | F52: =IF('Eingabe Daten'!I52="","",'Eingabe Daten'!I52) ->  | L52: 36
A53: 49 | B53: =IF('Eingabe Daten'!E53="","",'Eingabe Daten'!E53) ->  | C53: =IF('Eingabe Daten'!F53="","",'Eingabe Daten'!F53) ->  | D53: =IF('Eingabe Daten'!G53="","",'Eingabe Daten'!G53) ->  | E53: =IF('Eingabe Daten'!H53="","",'Eingabe Daten'!H53) ->  | F53: =IF('Eingabe Daten'!I53="","",'Eingabe Daten'!I53) ->  | L53: 36
A54: 50 | B54: =IF('Eingabe Daten'!E54="","",'Eingabe Daten'!E54) ->  | C54: =IF('Eingabe Daten'!F54="","",'Eingabe Daten'!F54) ->  | D54: =IF('Eingabe Daten'!G54="","",'Eingabe Daten'!G54) ->  | E54: =IF('Eingabe Daten'!H54="","",'Eingabe Daten'!H54) ->  | F54: =IF('Eingabe Daten'!I54="","",'Eingabe Daten'!I54) ->  | L54: 36
B55: =IF('Eingabe Daten'!E55="","",'Eingabe Daten'!E55) ->  | C55: =IF('Eingabe Daten'!F55="","",'Eingabe Daten'!F55) ->  | D55: =IF('Eingabe Daten'!G55="","",'Eingabe Daten'!G55) ->  | E55: =IF('Eingabe Daten'!H55="","",'Eingabe Daten'!H55) -> 
B56: =IF('Eingabe Daten'!E56="","",'Eingabe Daten'!E56) ->  | C56: =IF('Eingabe Daten'!F56="","",'Eingabe Daten'!F56) ->  | D56: =IF('Eingabe Daten'!G56="","",'Eingabe Daten'!G56) ->  | E56: =IF('Eingabe Daten'!H56="","",'Eingabe Daten'!H56) ->  | F56: =IF('Eingabe Daten'!I56="","",'Eingabe Daten'!I56) -> 
B57: =IF('Eingabe Daten'!E57="","",'Eingabe Daten'!E57) ->  | C57: =IF('Eingabe Daten'!F57="","",'Eingabe Daten'!F57) ->  | D57: =IF('Eingabe Daten'!G57="","",'Eingabe Daten'!G57) ->  | E57: =IF('Eingabe Daten'!H57="","",'Eingabe Daten'!H57) ->  | F57: =IF('Eingabe Daten'!I57="","",'Eingabe Daten'!I57) -> 

Sheet Beispieldaten
B2: 74.03 | C2: 74.002 | D2: 74.019 | E2: 73.992 | F2: 74.008
B3: 73.995 | C3: 73.992 | D3: 74.001 | E3: 74.011 | F3: 74.004
B4: 73.988 | C4: 74.024 | D4: 74.021 | E4: 74.005 | F4: 74.002
B5: 74.002 | C5: 73.996 | D5: 73.993 | E5: 74.015 | F5: 74.009
B6: 73.992 | C6: 74.007 | D6: 74.015 | E6: 73.989 | F6: 74.014
B7: 74.009 | C7: 73.994 | D7: 73.997 | E7: 73.985 | F7: 73.993
B8: 73.995 | C8: 74.006 | D8: 73.994 | E8: 74 | F8: 74.005
B9: 73.985 | C9: 74.003 | D9: 73.993 | E9: 74.015 | F9: 73.988
B10: 74.008 | C10: 73.995 | D10: 74.009 | E10: 74.005 | F10: 74.004
B11: 73.998 | C11: 74 | D11: 73.99 | E11: 74.007 | F11: 73.995
B12: 73.994 | C12: 73.998 | D12: 73.994 | E12: 73.995 | F12: 73.99
B13: 74.004 | C13: 74 | D13: 74.007 | E13: 74 | F13: 73.996
B14: 73.983 | C14: 74.002 | D14: 73.998 | E14: 73.997 | F14: 74.012
B15: 74.006 | C15: 73.967 | D15: 73.994 | E15: 74 | F15: 73.984
B16: 74.012 | C16: 74.014 | D16: 73.998 | E16: 73.999 | F16: 74.007
B17: 74 | C17: 73.984 | D17: 74.005 | E17: 73.998 | F17: 73.996
B18: 73.994 | C18: 74.012 | D18: 73.986 | E18: 74.005 | F18: 74.007
B19: 74.006 | C19: 74.01 | D19: 74.018 | E19: 74.003 | F19: 74
B20: 73.984 | C20: 74.002 | D20: 74.003 | E20: 74.005 | F20: 73.997
B21: 74 | C21: 74.01 | D21: 74.013 | E21: 74.02 | F21: 74.003
B22: 73.982 | C22: 74.001 | D22: 74.015 | E22: 74.005 | F22: 73.996
B23: 74.004 | C23: 73.999 | D23: 73.99 | E23: 74.006 | F23: 74.009
B24: 74.01 | C24: 73.989 | D24: 73.99 | E24: 74.009 | F24: 74.014
B25: 74.015 | C25: 74.008 | D25: 73.993 | E25: 74 | F25: 74.01
B26: 73.982 | C26: 73.984 | D26: 73.995 | E26: 74.017 | F26: 74.013
B27: 74.03 | C27: 74.002 | D27: 74.019 | E27: 73.992 | F27: 74.008
B28: 73.995 | C28: 73.992 | D28: 74.001 | E28: 74.011 | F28: 74.004
B29: 73.988 | C29: 74.024 | D29: 74.021 | E29: 74.005 | F29: 74.002
B30: 74.002 | C30: 73.996 | D30: 73.993 | E30: 74.015 | F30: 74.009
B31: 73.992 | C31: 74.007 | D31: 74.015 | E31: 73.989 | F31: 74.014
B32: 74.009 | C32: 73.994 | D32: 73.997 | E32: 73.985 | F32: 73.993
B33: 73.995 | C33: 74.006 | D33: 73.994 | E33: 74 | F33: 74.005
B34: 73.985 | C34: 74.003 | D34: 73.993 | E34: 74.015 | F34: 73.988
B35: 74.008 | C35: 73.995 | D35: 74.009 | E35: 74.005 | F35: 74.004
B36: 73.998 | C36: 74 | D36: 73.99 | E36: 74.007 | F36: 73.995
B37: 73.994 | C37: 73.998 | D37: 73.994 | E37: 73.995 | F37: 73.99
B38: 74.004 | C38: 74 | D38: 74.007 | E38: 74 | F38: 73.996
B39: 73.983 | C39: 74.002 | D39: 73.998 | E39: 73.997 | F39: 74.012
B40: 74.006 | C40: 73.967 | D40: 73.994 | E40: 74 | F40: 73.984
B41: 74.012 | C41: 74.014 | D41: 73.998 | E41: 73.999 | F41: 74.007
B42: 74 | C42: 73.984 | D42: 74.005 | E42: 73.998 | F42: 73.996
B43: 73.994 | C43: 74.012 | D43: 73.986 | E43: 74.005 | F43: 74.007
B44: 74.006 | C44: 74.01 | D44: 74.018 | E44: 74.003 | F44: 74
B45: 73.984 | C45: 74.002 | D45: 74.003 | E45: 74.005 | F45: 73.997
B46: 74 | C46: 74.01 | D46: 74.013 | E46: 74.02 | F46: 74.003
B47: 73.982 | C47: 74.001 | D47: 74.015 | E47: 74.005 | F47: 73.996
B48: 74.004 | C48: 73.999 | D48: 73.99 | E48: 74.006 | F48: 74.009
B49: 74.01 | C49: 73.989 | D49: 73.99 | E49: 74.009 | F49: 74.014
B50: 74.015 | C50: 74.008 | D50: 73.993 | E50: 74 | F50: 74.01
B51: 73.982 | C51: 73.984 | D51: 73.995 | E51: 74.017 | F51: 74.013
